Cogmind - Beta 9.6 @@@ ROGUE MODE // 2020.06.14 @ 11:15:06 Player: Teratos Result: Destroyed by S-10 Pest with Light Assault Rifle Performance ------------- Evolutions (1) 500 Regions Visited (4) 800 Robots Destroyed (27) 135 Value Destroyed (523) 523 Prototype IDs (1) 20 Alien Tech Used (0) 0 Bonus (-18) -18 TOTAL SCORE: 1960 Bonus ------- Friendly Fire -18 Cogmind --------- Core Integrity 0/400 Matter 299/300 Energy 124/125 System Corruption 0% Temperature Cool (0) Movement Core (200) Ox3 Location -9/Mines Parts ------- > --- POWER (1) -------- Light Ion Engine > --- PROPULSION (2) --- (None) > --- UTILITY (3) ------ Small Storage Unit Improved Light Armor Plating > --- WEAPON (3) ------- Light Assault Rifle > --- INVENTORY (6) ---- Ion Engine Light Ion Engine Light Ion Engine Light Ion Engine Peak State ------------ > --- POWER ------------ Ion Engine > --- PROPULSION ------- Compact Wheel > --- UTILITY ---------- Small Storage Unit Structural Scanner Experimental Sensor Array > --- WEAPON ----------- Particle Gun Particle Gun Particle Gun > --- INVENTORY -------- Light Ion Engine [Rating: 16] Favorites ----------- Power Ion Engine Engine Ion Engine Propulsion Light Treads Treads Light Treads Wheel Compact Wheel Utility Small Storage Unit Device Experimental Sensor Array Storage Small Storage Unit Protection Improved Light Armor Plating Weapon EM Pulse Gun Energy Gun EM Pulse Gun Ballistic Gun Light Assault Rifle Launcher Grenade Launcher Build | -11 -10 -10 -9 -9 ------- Run | Scr Mat Min Mat Min Slots Evolved 2 | . . . 2 . Power . | . . . . . Propulsion . | . . . . . Utility 1 | . . . 1 . Weapon 1 | . . . 1 . Parts Attached 31 | 6 4 3 8 10 Power 7 | 1 1 . 1 4 Engine 7 | 1 1 . 1 4 Core . | . . . . . Reactor . | . . . . . Propulsion 6 | 2 . 2 . 2 Treads 2 | 2 . . . . Leg . | . . . . . Wheel 4 | . . 2 . 2 Hover . | . . . . . Flight . | . . . . . Utility 5 | 1 1 1 1 1 Device 3 | . 1 1 1 . Storage 1 | 1 . . . . Processor . | . . . . . Hackware . | . . . . . Protection 1 | . . . . 1 Artifact . | . . . . . Weapon 13 | 2 2 . 6 3 Energy Gun 5 | . 2 . 3 . Energy Cannon . | . . . . . Ballistic Gun 7 | 2 . . 2 3 Ballistic Cannon . | . . . . . Launcher 1 | . . . 1 . Special Weapon . | . . . . . Impact Weapon . | . . . . . Slashing Weapon . | . . . . . Piercing Weapon . | . . . . . Special Melee Weapon . | . . . . . Unidentified Prototypes 1 | . . 1 . . Parts Lost 14 | . . . 3 11 Power 2 | . . . 1 1 Propulsion 4 | . . . 1 3 Utility 2 | . . . . 2 Weapon 6 | . . . 1 5 Highest Loss Streak 5 | . . . 3 5 Average Slot Usage (%) 83 | . 85 98 79 65 Engine 11 | . 14 14 6 9 Treads 11 | . 28 11 . . Wheel 10 | . . 15 16 9 Device 11 | . . 13 22 13 Storage 12 | . 14 14 11 11 Protection 1 | . . . . 3 Energy Gun 19 | . 18 28 21 8 Ballistic Gun 5 | . 9 . . 9 Naked Turns . | . . . . . Heaviest Build 20 | 10 13 14 20 20 Greatest Support 40 | 40 40 40 26 26 Greatest Overweight (x) 4 | . . 1 1 4 Average Overweight (x) . | . . . . . Largest Inventory Capacity 6 | 6 6 6 6 6 Average Capacity 5 | 4 6 6 6 6 Most Carried 4 | . 1 3 2 4 Average Carried 1 | . . 2 1 3 Final Capacity 6 | 6 6 6 6 6 Final Carried 4 | . 1 3 1 4 Class Distribution -------------------- 83% | Mutant 8% | Scavenger-Mutant 7% | Skirmisher Dominant Class ---------------- Mutant | -10/Materials Mutant | -10/Mines Mutant | -9/Materials Mutant | -9/Mines Resources | -11 -10 -10 -9 -9 ----------- Run | Scr Mat Min Mat Min Matter Collected 650 | 176 194 40 64 176 Remotely . | . . . . . Salvage Created 827 | . 403 63 155 206 Parts 48 | . 24 7 8 9 Haulers Intercepted 1 | . . . 1 . Recyclers Shooed 1 | . . 1 . . Parts Field Recycled . | . . . . . Retrieved Matter . | . . . . . Parts Self-Destructed . | . . . . . Prevented . | . . . . . Kills | -11 -10 -10 -9 -9 ------- Run | Scr Mat Min Mat Min Combat Hostiles Destroyed 18 | . 6 . 3 9 Guns 15 | . 6 . . 9 AOE 3 | . . . 3 . Classes Destroyed 10 | . 5 2 1 2 Worker 1 | . . 1 . . Tunneler 2 | . . 2 . . Hauler 1 | . . . 1 . Recycler 2 | . 1 . . 1 Mechanic 1 | . 1 . . . Operator 1 | . 1 . . . Watcher 1 | . 1 . . . Swarmer 1 | . . . . 1 Grunt 10 | . 6 . 3 1 Assembled 7 | . . . . 7 Best Kill Streak 8 | . 8 1 3 2 Combat Bots Only 6 | . 6 . 3 2 Max Kills in Single Turn 2 | . 2 1 2 2 Gunslinging 1 | . . . . 1 Exploded 2 | . . . 2 . Melee . | . . . . . Uniques/NPCs Destroyed . | . . . . . Combat | -11 -10 -10 -9 -9 -------- Run | Scr Mat Min Mat Min Damage Taken 1532 | . 319 68 260 885 Core 451 | . 46 . 81 324 Absorbed by Shields . | . . . . . Core Remaining (%) 90 | 100 . 81 . . Volleys Fired 114 | . 30 11 12 61 Largest 3 | . 2 2 2 3 Hottest 195 | . 80 80 80 195 Shots Fired 196 | . 60 22 23 91 Gun 193 | . 60 22 20 91 Cannon . | . . . . . Launcher 3 | . . . 3 . Special . | . . . . . Kinetic 110 | . 40 . . 70 Thermal 21 | . . . . 21 Explosive 3 | . . . 3 . Electromagnetic 62 | . 20 22 20 . Robot Hit Streak 11 | . 11 4 4 6 Robot Miss Streak 5 | . 3 4 5 5 Penetration Max . | . . . . . Secondary Targets 3 | . 1 . . 2 Max Gunslinging Chain 1 | . 1 . . 1 Shots Hit Robots 107 | . 34 13 9 51 Core Hits 56 | . 18 5 9 24 Critical Hits 1 | . . . . 1 Critical Kills . | . . . . . Critical Parts Destroyed 1 | . . . . 1 Melee Attacks . | . . . . . Impact . | . . . . . Slashing . | . . . . . Piercing . | . . . . . Sneak Attacks . | . . . . . Combat Hostiles . | . . . . . Follow-up Attacks . | . . . . . Damage Inflicted 1416 | . 443 168 320 485 Guns 1166 | . 443 141 104 478 Cannons . | . . . . . Explosions 243 | . . 27 216 . Melee . | . . . . . Ramming 7 | . . . . 7 Kinetic 626 | . 318 . . 308 Thermal 244 | . . 27 47 170 Explosive 169 | . . . 169 . Electromagnetic 370 | . 125 141 104 . Impact . | . . . . . Slashing . | . . . . . Piercing . | . . . . . Highest Corruption . | . . . . . Average Corruption . | . . . . . Corruption Purged . | . . . . . Overload Shots . | . . . . . Overflow Damage . | . . . . . Projectiles . | . . . . . Explosions . | . . . . . Melee . | . . . . . Knockbacks . | . . . . . Impact . | . . . . . Kinetic . | . . . . . Secondary . | . . . . . Self-Inflicted Damage 57 | . . 22 32 3 Shots 3 | . . 1 2 . Rammed 1 | . . . . 1 Targets Rammed 1 | . . . . 1 Kicked . | . . . . . Crushed . | . . . . . Highest Temperature 594 | . 90 93 108 594 Average Temperature 95 | . 22 40 49 212 Received Heat Transfer 609 | . 177 9 135 288 Effects 5 | . . . . 5 Shutdowns 2 | . . . . 2 Energy Bleed 2 | . . . . 2 Damage (core) 1 | . . . . 1 Siege Activations . | . . . . . Robots Corrupted . | . . . . . Combat Hostiles . | . . . . . Parts Fried 2 | . 1 1 . . Impact Corruptions . | . . . . . Robots Melted . | . . . . . Combat Hostiles . | . . . . . Parts Melted . | . . . . . Heat Transferred 507 | . . 50 50 407 Parts Sabotaged . | . . . . . Parts Stolen . | . . . . . Parts Stripped . | . . . . . Power Chain Reactions 2 | . . 1 1 . Missiles Intercepted . | . . . . . Alert | -11 -10 -10 -9 -9 ------- Run | Scr Mat Min Mat Min Peak Influence 231 | . 231 120 107 45 Average Influence 75 | . 134 90 66 19 Maximum Alert Level 1 | . 1 . . . Low Security (%) 95 | 100 82 100 100 100 Level 1 4 | . 17 . . . Level 2 . | . . . . . Level 3 . | . . . . . Level 4 . | . . . . . Level 5 . | . . . . . High Security . | . . . . . Max Security . | . . . . . Squads Dispatched 2 | . 1 . . 1 Investigation . | . . . . . Extermination . | . . . . . Reinforcement 2 | . 1 . . 1 Assault . | . . . . . Garrison . | . . . . . Intercept . | . . . . . Construction Impeded 1 | . . . . 1 Haulers Reinforced . | . . . . . Stealth | -11 -10 -10 -9 -9 --------- Run | Scr Mat Min Mat Min Distress Signals 2 | . 1 . . 1 Communications Jammed . | . . . . . Distress Signals . | . . . . . Times Spotted 38 | . 13 2 5 18 Peak Tracking Total 6 | . 4 2 3 6 Tactical Retreats 2 | . . . . 2 Traps | -11 -10 -10 -9 -9 ------- Run | Scr Mat Min Mat Min Traps Triggered . | . . . . . Indirectly . | . . . . . Trap Hack Attempts . | . . . . . Triggered . | . . . . . Disarmed . | . . . . . Reprogrammed . | . . . . . Reused . | . . . . . Traps Extracted . | . . . . . Installed . | . . . . . Triggered . | . . . . . Machines | -11 -10 -10 -9 -9 ---------- Run | Scr Mat Min Mat Min Machines Disabled 6 | . 2 1 3 . Max in Single Turn 2 | . 2 1 2 . Machines Sabotaged . | . . . . . Garrisons Compromised . | . . . . . Overloaded Fab Kills . | . . . . . Fab Network Shutdowns . | . . . . . Hacking | -11 -10 -10 -9 -9 --------- Run | Scr Mat Min Mat Min Machines Accessed 1 | . 1 . . . Terminals 1 | . 1 . . . Fabricators . | . . . . . Repair Stations . | . . . . . Recycling Units . | . . . . . Scanalyzers . | . . . . . Garrison Access . | . . . . . Total Hacks 2 | . 2 . . . Successful 1 | . 1 . . . Failed 1 | . 1 . . . Catastrophic . | . . . . . Database Lockouts . | . . . . . Manual . | . . . . . Terminals 2 | . 2 . . . Fabricators . | . . . . . Repair Stations . | . . . . . Recycling Units . | . . . . . Scanalyzers . | . . . . . Garrison Access . | . . . . . Terminal Hacks 1 | . 1 . . . Zone Layout 1 | . 1 . . . Fabricator Hacks . | . . . . . Repair Station Hacks . | . . . . . Recycling Unit Hacks . | . . . . . Scanalyzer . | . . . . . Garrison Access Hacks . | . . . . . Unauthorized Hacks . | . . . . . Terminals . | . . . . . Fabricators . | . . . . . Repair Stations . | . . . . . Recycling Units . | . . . . . Scanalyzers . | . . . . . Garrison Access . | . . . . . Data Cores Recovered . | . . . . . Used . | . . . . . Hacking Detections 1 | . 1 . . . Full Trace Events . | . . . . . Feedback Events . | . . . . . Feedback Blocked . | . . . . . Robot Schematics Acquired . | . . . . . Robots Built . | . . . . . Matter . | . . . . . Time . | . . . . . Total Robot Build Rating . | . . . . . Part Schematics Acquired . | . . . . . Parts Built . | . . . . . Matter . | . . . . . Time . | . . . . . Total Part Build Rating . | . . . . . Parts Repaired . | . . . . . Time . | . . . . . Parts Recycled . | . . . . . Recycled Matter . | . . . . . Retrieved Matter . | . . . . . Retrieved Components . | . . . . . Parts Scanalyzed . | . . . . . Part Schematics Acquired . | . . . . . Parts Damaged . | . . . . . Bothacking | -11 -10 -10 -9 -9 ------------ Run | Scr Mat Min Mat Min Used RIF Installer . | . . . . . Robots Hacked . | . . . . . Non-combat . | . . . . . Combat . | . . . . . Robot Hacks Applied . | . . . . . Relay Couplers Released . | . . . . . Robots Rewired . | . . . . . Allies Hacked . | . . . . . Hacks Repelled . | . . . . . Allies | -11 -10 -10 -9 -9 -------- Run | Scr Mat Min Mat Min Total Allies . | . . . . . Largest Group . | . . . . . Highest-Rated Group . | . . . . . Highest-Rated Ally . | . . . . . Total Orders . | . . . . . Ally Attacks . | . . . . . Total Damage . | . . . . . Kills . | . . . . . Allies Corrupted . | . . . . . Allies Melted . | . . . . . Intel | -11 -10 -10 -9 -9 ------- Run | Scr Mat Min Mat Min Robot Analysis Total . | . . . . . Derelict Logs Recovered . | . . . . . Drone Launches . | . . . . . Drone Recoveries . | . . . . . Exploration | -11 -10 -10 -9 -9 ------------- Run | Scr Mat Min Mat Min Turns Passed 1435 | 64 363 454 167 387 Spaces Moved 902 | 38 169 377 121 197 Core 68 | 4 . . . 64 Treads 305 | 34 169 102 . . Legs . | . . . . . Wheels 529 | . . 275 121 133 Hover . | . . . . . Flight . | . . . . . Fastest Speed 50 | 50 160 90 90 80 Average Speed 119 | 148 160 108 94 113 Slowest Speed 250 | 160 160 160 110 250 Overloaded Moves . | . . . . . Propulsion Burnouts . | . . . . . Robots Hopped . | . . . . . Cave-ins Triggered . | . . . . . Exploration Rate (%) 29 | 3 38 64 11 31 Regions Visited 4 Branch Regions 2 Pre-discovered Areas . | . . . . . Known Exits Taken . | . . . . . Unknown Exits Taken 4 | 1 1 1 1 . Scrap Searched 1 | . . 1 . . Spaces Dug . | . . . . . Terrain Destroyed 22 | . . 3 19 . Melee . | . . . . . Projectile . | . . . . . AOE 22 | . . 3 19 . Actions | -11 -10 -10 -9 -9 --------- Run | Scr Mat Min Mat Min Total 1078 | 43 205 397 149 284 Wait 23 | . . 3 5 15 Move 898 | 37 168 376 120 197 Hop . | . . . . . Pick Up 2 | . . 2 . . Fast Attach 25 | 6 3 3 6 7 Attach 2 | . . . 2 . Detach . | . . . . . Swap 4 | . 1 . . 3 Drop 9 | . 3 2 4 . Fire 114 | . 30 11 12 61 Melee . | . . . . . Ram 1 | . . . . 1 Kick . | . . . . . Crush . | . . . . . Escape Stasis . | . . . . . Rewire . | . . . . . Trap . | . . . . . Miscellaneous . | . . . . . Route ------- -11/Scrapyard -10/Materials (discovered 2 exits: [Mat] / [*Min]) -10/Mines (discovered 2 exits: [*Mat x2]) -9/Materials -9/Mines History --------- Turn | Location | Event 38 | -11/Scrapyard | Discovered new exit (range 15) 65 | -11/Scrapyard | Entered Materials 304 | -10/Materials | Build established: Mutant 364 | -10/Materials | Discovered new exit (range 19) 407 | -10/Materials | Discovered new exit (range 7) 428 | -10/Materials | Entered Mines 433 | -10/Mines | Found a damaged Exp. Sensor Array with a note attached 449 | -10/Mines | Found Prototype Device 449 | -10/Mines | Identified Exp. Sensor Array 476 | -10/Mines | Assisted by bots powering up and referring to "LRC-V3" 632 | -10/Mines | Discovered new exit (range 11) 870 | -10/Mines | Discovered new exit (range 10) 882 | -10/Mines | Entered Materials 882 | -9/Materials | Evolved 2 slots: Utility x1, Weapon x1 984 | -9/Materials | Discovered new exit (range 8) 1005 | -9/Materials | Lost 3 parts (1p1n1w) 1049 | -9/Materials | Entered Mines 1050 | -9/Mines | Assembled infested the area 1157 | -9/Mines | Core integrity fell below 50% 1184 | -9/Mines | Lost 5 parts (1n1u3w) 1263 | -9/Mines | Core integrity fell below 20% 1281 | -9/Mines | Lost 3 parts (1p2w) 1436 | -9/Mines | Destroyed by S-10 Pest with Light Assault Rifle Last Messages --------------- 01335_ Acquired 5 matter. 01336_ U-05 Engineer lays Concrete. 01337_ U-05 Engineer builds a Wall. 01337_ U-05 Engineer lays Concrete. 01339_ K-01 Serf collects debris. 01339_ Acquired 24 matter. 01340_ U-05 Engineer lays Concrete. 01341_ Acquired 12 matter. 01342_ U-05 Engineer lays Concrete. 01365_ Acquired 6 matter. 01382_ U-05 Engineer lays Concrete. 01396_ Acquired 1 matter. 01397_ U-05 Engineer builds a Wall. 01398_ Acquired 1 matter. 01401_ U-05 Engineer builds a Wall. 01406_ Acquired 2 matter. 01430_ Com. Wheel destroyed. 01431_ S-10 Pest destroyed. 01433_ Wheel destroyed. 01434_ Structural Scanner destroyed. Map ----- +----------------------------------------------------+ | ???????????????????# #### ## ### #?? #???? | | ???????????????????# #?? #???? | | ???????????????????# %% #??# #???? | | ???????????????????## ### ! ! ####??# #???? | | ????????????????????## ##?## %==| ####?## ##??? | | ?????????????????????#####???##! ! ### %= #??? | | ?????????????????????????????###| = # ## = #??? | | ?????????????????????????????# # ## = #??? | | ??????????????????????????###### ### ##??? | | ??????????????????????????#*%%= " ##???? | | ??????????????????????????#!### ##????? | | ??????????????????????##### #### ## # ##????? | | ??????????????????????# #### #### #????? | | ??????????????????????# #####?##% ##?## #????? | | ??????????????????????# #????### %###?## ##????? | | ??????????????????????# #???## #%=# ####% ##?????? | | ??????????????????????# #??## ! # ## # #####??? | | ??????????????????????# #?## ## ## #??? | | ??????????????????????# #?# % ### #??? | | ???????????????????#### ### !% ## #???#??? | | ???????????????????# ### # ## #?? #??? | | ???????????????????# ### #?## ! % ## ### #??? | | ???????????????????#???# #??# !! ### ##?? | | ???????????????????????# #??## ## #?? | | ??????????????????????##s#########% # #?? | | ??????????????????????# s@s[ # % ## ##?? | | ??????????????????????# """= # #??? | | ??????????????????????# """ ## #??? | | ??????????????????????# """ ### #??? | | ??????????????????????# #?# ##??? | | ??????????????????????# """ #?## ####???? | | ??????????????????????# """ #??# ##??????? | | ??????????????????????T ""? #??## #???????? | | ??????????????????????#t ?? ? #???# ##???????? | | ??????????????????????###?????#????## ##????????? | | ????????????????????????????????????####?????????? | | ?????????????????????????????????????????????????? | | ?????????????????????????????????????????????????? | | ?????????????????????????????????????????????????? | | ?????????????????????????????????????????????????? | | | | | | | | | | | | | | | | | | | | | +----------------------------------------------------+ Best States ------------- Heat Dissipation 28 Energy Generation 10 Energy Capacity 250 Matter Stores 300 Matter Capacity 300 Sight Range 16 Robot Scan Range 30 Terrain Scan Density 10 Armor Coverage 150 Evasion (%) 42 Recoil Reduction 2 Item Schematics ----------------- None Robot Schematics ------------------ None Fabricated ------------ Nothing Alien Tech Used ----------------- None Achievements -------------- None Challenges ------------ None Game ------ Seed FlightFlyingFlakker Manual? 0 Play Time 00:14:00 Cumulative 36.8 hours Start 2020.06.14 @ 11:03:41 End 2020.06.14 @ 11:15:06 Sessions 1 Manual Loads 0 Difficulty Rogue Special Mode None Game No. 81 Rogue 81 Adventurer 0 Explorer 0 Win Type - Total 0 Types 0/0/0/0/0/0/0 Lore% 24 Gallery% 26 Achievement% 22 Wizard Run 0 Options --------- ASCII 0 Keyboard 0 Movement Numpad Keybinds 0 Fullscreen 1 Font 18/SmallcapsGlow Map View 76x50 Tactical HUD 1 Map Filters NONE Filters NONE Steam 1 RUN: 70f8cca3-07b0-4f2e-996f-3a10376365e5